[Event "1000GM Spring Break Schev-F 2024"]
[Site "San Jose"]
[Date "2024.04.07"]
[Round "1.1"]
[White "Sethuraman, Anand"]
[Black "Gongora Montes, Benjamin"]
[Result "0-1"]
[ECO "D07"]
[WhiteElo "1749"]
[BlackElo "2092"]
[Annotator "RC"]
[PlyCount "54"]
[EventDate "2024.03.28"]
[EventType "schev"]
[EventCountry "USA"]
[SourceTitle "playchess.com"]
[Source "ChessBase"]
[SourceQuality "1"]
[TimeControl "5400+30"]

1. Nf3 {[%emt 0:00:05]} Nc6 {[%emt 0:00:09]} 2. d4 {[%emt 0:00:25]} d5 {[%emt 0:00:10]} 3. c4 {[%emt 0:00:23]} Bg4 {[%emt 0:00:10]} 4. e3 {[%emt 0:03:25]} e5 {[%emt 0:00:27]} 5. cxd5 {[%emt 0:10:22]} Qxd5 {[%emt 0:00:14]} 6. Nc3 {[%emt 0:00:08]} Bb4 {[%emt 0:00:05]} 7. a3 {[%emt 0:00:46]} Bxc3+ {[%emt 0:00:43]} 8. bxc3 {[%emt 0:00:07]} e4 {[%emt 0:09:40]} 9. c4 {[%emt 0:03:28]} Qh5 {[%emt 0:00:13]} 10. Qa4 {[%emt 0:23:41]} exf3 {[%emt 0:00:34]} 11. d5 {[%emt 0:01:20]} Bd7 {[%emt 0:00:13]} 12. dxc6 {[%emt 0:03:34]} Bxc6 {[%emt 0:00:09]} 13. g4 {[%emt 0:03:02]} Qe5 {[%emt 0:00:52]} 14. Qc2 {[%emt 0:09:10]} Qxa1 {[%emt 0:00:33]} 15. Bd3 {[%emt 0:00:08]} Nf6 {[%emt 0:01:34]} 16. O-O {[%emt 0:02:06]} Qe5 {[%emt 0:00:12]} 17. Bb2 {[%emt 0:00:28]} Qg5 {[%emt 0:00:12]} 18. Kh1 {[%emt 0:00:13]} Nxg4 {[%emt 0:00:22]} 19. Bf5 {[%emt 0:08:16]} Nxh2 {[%emt 0:04:50]} 20. Bh3 {[%emt 0:03:39]} Nxf1 {[%emt 0:00:13]} 21. Bxf1 {[%emt 0:00:28]} Rd8 {[%emt 0:00:28]} 22. c5 {[%emt 0:04:31]} Qh4+ {[%emt 0:00:11]} 23. Kg1 {[%emt 0:00:03]} Qg4+ {[%emt 0:00:10]} 24. Kh2 {[%emt 0:00:10]} Rd5 {[%emt 0:00:09]} 25. Bh3 {[%emt 0:05:50]} Rh5 {[%emt 0:00:10]} 26. Qe4+ {[%emt 0:00:12]} Bxe4 {[%emt 0:00:13]} 27. Kh1 {[%emt 0:00:19]} Rxh3# {[%emt 0:01:29]} 0-1

[Event "1000GM Spring Break Schev-F 2024"]
[Site "San Jose"]
[Date "2024.04.07"]
[Round "1.2"]
[White "Penagalapati, Abhinav"]
[Black "Solis Castro, Angel Alejan"]
[Result "1-0"]
[ECO "A62"]
[WhiteElo "2098"]
[BlackElo "2066"]
[Annotator "RC"]
[PlyCount "85"]
[EventDate "2024.03.28"]
[EventType "schev"]
[EventCountry "USA"]
[SourceTitle "playchess.com"]
[Source "ChessBase"]
[SourceQuality "1"]
[TimeControl "5400+30"]

1. d4 {[%emt 0:06:39]} Nf6 {[%emt 1:31:00]} 2. c4 {[%emt 0:00:10]} e6 {[%emt 0:00:00]} 3. g3 {[%emt 0:00:05]} c5 {[%emt 0:00:00]} 4. d5 {[%emt 0:00:03]} exd5 {[%emt 0:00:00]} 5. cxd5 {[%emt 0:00:03]} d6 {[%emt 0:00:00]} 6. Nc3 {[%emt 0:00:01]} g6 {[%emt 0:02:30]} 7. Bg2 Bg7 8. Nf3 O-O 9. O-O Re8 10. Bf4 a6 11. a4 Ne4 12. Rc1 Nxc3 13. bxc3 b5 14. Re1 Qb6 15. axb5 axb5 16. Qb3 Bg4 17. e4 Nd7 18. Nd2 Ne5 {[%emt 0:00:00]} 19. Bxe5 {[%emt 0:06:20]} dxe5 {[%emt 0:00:00]} 20. Ra1 {[%emt 0:05:05]} Bd7 {[%emt 0:00:00]} 21. Bf1 {[%emt 0:00:44]} Ra6 {[%emt 0:00:00]} 22. Reb1 {[%emt 0:02:44]} Rb8 {[%emt 0:00:00]} 23. Ra2 {[%emt 0:04:09]} Bf8 {[%emt 0:00:00]} 24. Rab2 {[%emt 0:01:40]} Qa7 {[%emt 0:00:00]} 25. Nc4 {[%emt 0:07:52]} f6 26. Qc2 {[%emt 0:03:24]} Ra4 {[%emt 0:00:00]} 27. Ne3 b4 {[%emt 0:00:00]} 28. Bc4 {[%emt 0:01:00]} Kg7 {[%emt 0:00:00]} 29. d6 {[%emt 0:00:30]} Be8 {[%emt 0:00:00]} 30. Bb3 {[%emt 0:00:30]} Ra1 {[%emt 0:00:00]} 31. cxb4 {[%emt 0:00:30]} Rxb4 {[%emt 0:00:00]} 32. Nd5 {[%emt 0:00:30]} Rxb1+ {[%emt 0:00:00]} 33. Rxb1 {[%emt 0:00:30]} Rb8 {[%emt 0:00:00]} 34. Qd1 {[%emt 0:00:30]} Bxd6 {[%emt 0:00:00]} 35. Nxf6 {[%emt 0:00:30]} Be7 {[%emt 0:00:00]} 36. Nxe8+ {[%emt 0:00:30]} Rxe8 {[%emt 0:00:00]} 37. Qd5 {[%emt 0:00:30]} Bf8 {[%emt 0:00:00]} 38. Bc4 {[%emt 0:00:30]} Kh6 {[%emt 0:00:00]} 39. Rb7 {[%emt 0:00:30]} Qa1+ {[%emt 0:00:00]} 40. Kg2 {[%emt 0:00:30]} Qd4 {[%emt 0:00:00]} 41. Rxh7+ {[%emt 0:00:30]} Kxh7 {[%emt 0:00:00]} 42. Qg8+ {[%emt 0:00:30]} Kh6 {[%emt 0:00:00]} 43. Qh8+ {[%emt 0:00:30]} 1-0

[Event "1000GM Spring Break Schev-F 2024"]
[Site "San Jose"]
[Date "2024.04.07"]
[Round "1.3"]
[White "Yang, Maxwell"]
[Black "Varela Velazquez, Carlos Francisco"]
[Result "0-1"]
[ECO "E48"]
[WhiteElo "1987"]
[BlackElo "2084"]
[Annotator "ChessBase"]
[PlyCount "52"]
[EventDate "2024.03.28"]
[EventType "schev"]
[EventCountry "USA"]
[SourceTitle "playchess.com"]
[Source "ChessBase"]
[SourceQuality "1"]
[TimeControl "5400+30"]

1. d4 {[%emt 0:01:03]} Nf6 {[%emt 0:00:12]} 2. c4 {[%emt 0:00:09]} e6 {[%emt 0:00:06]} 3. Nc3 {[%emt 0:00:05]} Bb4 {[%emt 0:00:18]} 4. e3 {[%emt 0:00:07]} O-O {[%emt 0:00:16]} 5. Bd3 {[%emt 0:00:09]} d5 {[%emt 0:00:21]} 6. Nge2 {[%emt 0:01:10]} dxc4 {[%emt 0:08:31]} 7. Bxc4 {[%emt 0:00:23]} c5 {[%emt 0:00:17]} 8. O-O {[%emt 0:11:30]} cxd4 {[%emt 0:22:54]} 9. exd4 {[%emt 0:01:04]} Nc6 {[%emt 0:00:15]} 10. Bg5 {[%emt 0:02:27]} Be7 {[%emt 0:00:33]} 11. Qd2 {[%emt 0:04:47]} b6 {[%emt 0:11:05]} 12. Rad1 {[%emt 0:08:58]} Bb7 {[%emt 0:01:13]} 13. Qc2 {[%emt 0:20:02]} Rc8 {[%emt 0:18:02]} 14. Qa4 {[%emt 0:13:29]} Qe8 {[%emt 0:14:17]} 15. Nf4 {[%emt 0:07:48]} a6 {[%emt 0:05:59]} 16. Nxe6 {[%emt 0:14:16]} b5 {[%emt 0:00:45]} 17. Nxb5 {[%emt 0:01:01]} fxe6 {[%emt 0:00:10]} 18. Bxe6+ {[%emt 0:00:10]} Kh8 {[%emt 0:00:02]} 19. Nc3 {[%emt 0:01:58]} Rd8 {[%emt 0:01:43]} 20. Bxf6 {[%emt 0:03:37]} Bxf6 {[%emt 0:02:57]} 21. d5 {[%emt 0:00:16]} Ne5 {[%emt 0:01:25]} 22. Qb4 {[%emt 0:02:09]} Rb8 {[%emt 0:01:25]} 23. Qc5 {[%emt 0:00:37]} Bc8 {[%emt 0:01:44]} 24. Qd6 {[%emt 0:02:46]} Rxb2 {[%emt 0:02:14]} 25. Na4 {[%emt 0:00:49]} Rxa2 {[%emt 0:01:35]} 26. Nb6 {[%emt 0:01:15]} Bb7 {[%emt 0:03:00]} 0-1

[Event "1000GM Spring Break Schev-F 2024"]
[Site "San Jose"]
[Date "2024.04.07"]
[Round "1.5"]
[White "Rodi, Luis Ernesto"]
[Black "Jin, Austin"]
[Result "1-0"]
[ECO "C81"]
[WhiteElo "2211"]
[BlackElo "1966"]
[Annotator "RC"]
[PlyCount "61"]
[EventDate "2024.03.28"]
[EventType "schev"]
[EventCountry "USA"]
[SourceTitle "playchess.com"]
[Source "ChessBase"]
[SourceQuality "1"]
[TimeControl "5400+30"]

1. e4 {[%emt 0:03:05]} e5 {[%emt 0:00:10]} 2. Nf3 {[%emt 0:00:07]} Nc6 {[%emt 0:00:06]} 3. Bb5 {[%emt 0:00:34]} a6 {[%emt 0:00:12]} 4. Ba4 {[%emt 0:00:06]} Nf6 {[%emt 0:00:09]} 5. O-O {[%emt 0:00:07]} Nxe4 {[%emt 0:00:10]} 6. d4 {[%emt 0:00:16]} b5 {[%emt 0:00:07]} 7. Bb3 {[%emt 0:00:05]} d5 {[%emt 0:00:11]} 8. dxe5 {[%emt 0:00:05]} Be6 {[%emt 0:00:12]} 9. Qe2 {[%emt 0:00:31]} Be7 {[%emt 0:00:22]} 10. Rd1 {[%emt 0:00:06]} O-O {[%emt 0:00:37]} 11. c4 {[%emt 0:00:30]} bxc4 {[%emt 0:00:08]} 12. Bxc4 {[%emt 0:00:05]} Bc5 {[%emt 0:01:24]} 13. Be3 {[%emt 0:00:06]} Bxe3 {[%emt 0:00:19]} 14. Qxe3 {[%emt 0:00:06]} Qb8 {[%emt 0:00:13]} 15. Bb3 {[%emt 0:00:06]} Na5 {[%emt 0:00:36]} 16. Nbd2 {[%emt 0:00:21]} Qa7 {[%emt 0:00:15]} 17. Nxe4 {[%emt 0:00:11]} Qxe3 {[%emt 0:05:49]} 18. fxe3 {[%emt 0:00:51]} Nxb3 {[%emt 0:02:17]} 19. axb3 {[%emt 0:00:21]} dxe4 {[%emt 0:00:14]} 20. Nd4 {[%emt 0:00:06]} Rfd8 {[%emt 0:11:17]} 21. Rdc1 {[%emt 0:01:50]} Rd5 {[%emt 0:14:00]} 22. Rxc7 {[%emt 0:11:23]} Rxe5 {[%emt 0:02:04]} 23. b4 {[%emt 0:00:41]} Bd5 {[%emt 0:25:16]} 24. Rxa6 {[%emt 0:02:45]} Ree8 {[%emt 0:03:03]} 25. b5 {[%emt 0:01:40]} g6 {[%emt 0:02:28]} 26. h4 {[%emt 0:05:55]} Reb8 {[%emt 0:06:15]} 27. Rd6 {[%emt 0:01:57]} Be6 {[%emt 0:04:45]} 28. b6 {[%emt 0:05:00]} Ra6 {[%emt 0:03:55]} 29. Rxe6 {[%emt 0:03:14]} fxe6 {[%emt 0:00:50]} 30. b7 {[%emt 0:00:06]} Rd6 {[%emt 0:00:45]} 31. Rc8+ {[%emt 0:00:15]} 1-0

[Event "1000GM Spring Break Schev-F 2024"]
[Site "San Jose"]
[Date "2024.04.07"]
[Round "2.1"]
[White "Solis Castro, Angel Alejan"]
[Black "Sethuraman, Anand"]
[Result "1/2-1/2"]
[ECO "E95"]
[WhiteElo "2066"]
[BlackElo "1749"]
[Annotator "ChessBase"]
[PlyCount "83"]
[EventDate "2024.03.28"]
[EventType "schev"]
[EventCountry "USA"]
[SourceTitle "playchess.com"]
[Source "ChessBase"]
[SourceQuality "1"]
[TimeControl "5400+30"]

1. d4 {[%emt 0:01:09]} Nf6 {[%emt 0:00:03]} 2. c4 {[%emt 0:00:07]} g6 {[%emt 0:00:07]} 3. Nc3 {[%emt 0:00:06]} Bg7 {[%emt 0:00:04]} 4. e4 {[%emt 0:00:09]} d6 {[%emt 0:00:05]} 5. Be2 {[%emt 0:00:06]} O-O {[%emt 0:00:08]} 6. Nf3 {[%emt 0:00:05]} Nbd7 {[%emt 0:00:06]} 7. O-O {[%emt 0:00:20]} e5 {[%emt 0:00:04]} 8. Re1 {[%emt 0:00:07]} c6 {[%emt 0:00:09]} 9. Bf1 {[%emt 0:00:41]} Qc7 {[%emt 0:00:28]} 10. h3 {[%emt 0:00:24]} a5 {[%emt 0:03:21]} 11. d5 {[%emt 0:01:44]} Nc5 {[%emt 0:01:05]} 12. b3 {[%emt 0:00:58]} h6 {[%emt 0:00:43]} 13. a3 {[%emt 0:00:22]} Kh7 {[%emt 0:00:21]} 14. Bd2 {[%emt 0:00:52]} Nfd7 {[%emt 0:12:44]} 15. Qc2 {[%emt 0:00:52]} f5 {[%emt 0:09:53]} 16. exf5 {[%emt 0:03:10]} gxf5 {[%emt 0:02:40]} 17. Nh4 {[%emt 0:00:27]} e4 {[%emt 0:04:01]} 18. b4 {[%emt 0:02:35]} axb4 {[%emt 0:03:20]} 19. axb4 {[%emt 0:00:08]} Rxa1 {[%emt 0:00:14]} 20. Rxa1 {[%emt 0:00:07]} Nd3 {[%emt 0:00:22]} 21. Bxd3 {[%emt 0:01:33]} exd3 {[%emt 0:00:06]} 22. Qxd3 {[%emt 0:00:11]} Ne5 {[%emt 0:00:03]} 23. Qf1 {[%emt 0:02:51]} Qd8 {[%emt 0:09:05]} 24. f4 {[%emt 0:03:14]} Qxh4 {[%emt 0:01:38]} 25. fxe5 {[%emt 0:01:17]} Bxe5 {[%emt 0:00:18]} 26. Ra8 {[%emt 0:04:53]} f4 {[%emt 0:12:01]} 27. Be1 {[%emt 0:04:04]} Qg5 {[%emt 0:02:55]} 28. dxc6 {[%emt 0:02:41]} bxc6 {[%emt 0:08:00]} 29. Ne4 {[%emt 0:00:40]} Qg6 {[%emt 0:00:27]} 30. Nf2 {[%emt 0:00:24]} Rg8 {[%emt 0:01:00]} 31. Qd3 {[%emt 0:01:16]} Bf5 {[%emt 0:01:05]} 32. Rxg8 {[%emt 0:00:31]} Bxd3 {[%emt 0:02:02]} 33. Rxg6 {[%emt 0:00:12]} Bxg6 {[%emt 0:00:06]} 34. Kf1 {[%emt 0:00:18]} Bf7 {[%emt 0:00:36]} 35. c5 {[%emt 0:01:07]} Bc4+ {[%emt 0:00:37]} 36. Kg1 {[%emt 0:00:10]} dxc5 {[%emt 0:00:36]} 37. bxc5 {[%emt 0:00:09]} Bd4 {[%emt 0:00:12]} 38. Bd2 {[%emt 0:00:41]} Bxc5 {[%emt 0:00:29]} 39. Bxf4 {[%emt 0:00:13]} Kg6 {[%emt 0:00:25]} 40. g4 {[%emt 0:00:14]} Bxf2+ {[%emt 0:02:28]} 41. Kxf2 {[%emt 0:00:11]} h5 {[%emt 0:00:04]} 42. gxh5+ {[%emt 0:01:09]} 1/2-1/2

[Event "1000GM Spring Break Schev-F 2024"]
[Site "San Jose"]
[Date "2024.04.07"]
[Round "2.2"]
[White "Varela Velazquez, Carlos Francisco"]
[Black "Penagalapati, Abhinav"]
[Result "0-1"]
[ECO "B63"]
[WhiteElo "2084"]
[BlackElo "2098"]
[Annotator "RC"]
[PlyCount "60"]
[EventDate "2024.03.28"]
[EventType "schev"]
[EventCountry "USA"]
[SourceTitle "playchess.com"]
[Source "ChessBase"]
[SourceQuality "1"]
[TimeControl "5400+30"]

1. e4 {[%emt 0:01:39]} c5 {[%emt 1:31:00]} 2. Nf3 d6 3. d4 cxd4 4. Nxd4 Nf6 5. Nc3 Nc6 6. Bg5 e6 7. Qd2 Qb6 8. O-O-O Qxd4 9. Qxd4 Nxd4 10. Rxd4 a6 {[%emt 0:00:00]} 11. Na4 {[%emt 0:02:07]} e5 {[%emt 0:00:00]} 12. Bxf6 {[%emt 0:02:58]} gxf6 {[%emt 0:00:00]} 13. Rd1 {[%emt 0:07:22]} Be6 {[%emt 0:00:00]} 14. Nb6 {[%emt 0:00:12]} Rd8 {[%emt 0:00:00]} 15. Bc4 {[%emt 0:01:22]} Rg8 {[%emt 0:00:00]} 16. Rhg1 {[%emt 0:03:35]} Rg4 {[%emt 0:00:00]} 17. Bd5 {[%emt 0:08:30]} Rb8 {[%emt 0:00:00]} 18. Rd3 {[%emt 0:06:28]} f5 {[%emt 0:00:00]} 19. Rh3 {[%emt 0:25:45]} h6 {[%emt 0:00:00]} 20. exf5 {[%emt 0:12:25]} Bxf5 {[%emt 0:00:00]} 21. Rf3 {[%emt 0:00:09]} Bg6 {[%emt 0:00:00]} 22. Rb3 {[%emt 0:00:12]} Be7 {[%emt 0:00:00]} 23. Rd1 {[%emt 0:05:57]} Rf4 {[%emt 0:00:00]} 24. f3 {[%emt 0:00:35]} Rh4 {[%emt 0:00:00]} 25. h3 {[%emt 0:00:21]} Kd8 {[%emt 0:00:00]} 26. Nc8 Rxc8 {[%emt 0:00:00]} 27. Rc3 {[%emt 0:05:44]} Rd4 {[%emt 0:00:00]} 28. Rxd4 {[%emt 0:07:31]} exd4 {[%emt 0:00:00]} 29. Ra3 {[%emt 0:00:00]} Rc5 {[%emt 0:00:00]} 30. Ra5 {[%emt 0:01:12]} b5 {[%emt 0:00:00]} 0-1

[Event "1000GM Spring Break Schev-F 2024"]
[Site "San Jose"]
[Date "2024.04.07"]
[Round "2.3"]
[White "Dominguez Aguilar, Guillermo"]
[Black "Yang, Maxwell"]
[Result "1-0"]
[ECO "B23"]
[WhiteElo "2285"]
[BlackElo "1987"]
[Annotator "RC"]
[PlyCount "95"]
[EventDate "2024.03.28"]
[EventType "schev"]
[EventCountry "USA"]
[SourceTitle "playchess.com"]
[Source "ChessBase"]
[SourceQuality "1"]
[TimeControl "5400+30"]

1. e4 {[%emt 0:05:11]} c5 {[%emt 0:00:06]} 2. Nc3 {[%emt 0:00:36]} d6 {[%emt 0:00:57]} 3. f4 {[%emt 0:00:50]} g6 {[%emt 0:00:17]} 4. Nf3 {[%emt 0:00:36]} Bg7 {[%emt 0:00:10]} 5. Bb5+ {[%emt 0:00:36]} Bd7 {[%emt 0:01:24]} 6. Bxd7+ {[%emt 0:00:24]} Qxd7 {[%emt 0:00:20]} 7. O-O {[%emt 0:00:18]} Nc6 {[%emt 0:00:05]} 8. d3 {[%emt 0:01:13]} e6 {[%emt 0:00:13]} 9. f5 {[%emt 0:00:55]} exf5 {[%emt 0:07:50]} 10. exf5 {[%emt 0:00:58]} Nge7 {[%emt 0:00:16]} 11. fxg6 {[%emt 0:01:54]} hxg6 {[%emt 0:03:22]} 12. Ne4 {[%emt 0:00:33]} Nf5 {[%emt 0:01:39]} 13. Bg5 {[%emt 0:01:14]} O-O {[%emt 0:11:00]} 14. Qd2 {[%emt 0:01:43]} f6 {[%emt 0:05:14]} 15. Bf4 {[%emt 0:00:42]} g5 {[%emt 0:06:41]} 16. Bg3 {[%emt 0:00:30]} Nxg3 {[%emt 0:00:09]} 17. Nxg3 {[%emt 0:00:19]} Qg4 {[%emt 0:01:14]} 18. Ne4 {[%emt 0:03:10]} Rad8 {[%emt 0:01:44]} 19. Rae1 {[%emt 0:00:40]} b6 {[%emt 0:03:55]} 20. h3 {[%emt 0:02:27]} Qh5 {[%emt 0:01:22]} 21. c3 {[%emt 0:00:33]} Qg6 {[%emt 0:09:37]} 22. g4 {[%emt 0:00:48]} Rfe8 {[%emt 0:02:40]} 23. Ng3 {[%emt 0:00:48]} Ne5 {[%emt 0:03:01]} 24. Nf5 {[%emt 0:01:31]} Bf8 {[%emt 0:03:25]} 25. d4 {[%emt 0:00:43]} Nc6 {[%emt 0:02:23]} 26. Qd3 {[%emt 0:01:06]} Qf7 {[%emt 0:04:03]} 27. Rxe8 {[%emt 0:06:41]} Qxe8 {[%emt 0:02:21]} 28. Kg2 {[%emt 0:01:07]} d5 {[%emt 0:03:05]} 29. Re1 {[%emt 0:01:00]} Qd7 {[%emt 0:03:51]} 30. Ng3 {[%emt 0:01:14]} c4 {[%emt 0:01:33]} 31. Qg6+ {[%emt 0:01:11]} Qg7 {[%emt 0:00:37]} 32. Qf5 {[%emt 0:00:25]} Ne7 {[%emt 0:00:41]} 33. Qe6+ {[%emt 0:00:48]} Qf7 {[%emt 0:00:11]} 34. Nh5 {[%emt 0:00:11]} Ng6 {[%emt 0:06:32]} 35. Nxf6+ {[%emt 0:00:54]} Kg7 {[%emt 0:00:14]} 36. Nh5+ {[%emt 0:00:23]} Kg8 {[%emt 0:00:11]} 37. Nxg5 {[%emt 0:02:01]} Qxe6 {[%emt 0:02:54]} 38. Rxe6 {[%emt 0:00:15]} Rd6 {[%emt 0:00:46]} 39. Nf6+ {[%emt 0:00:14]} Kh8 {[%emt 0:00:23]} 40. Rxd6 {[%emt 0:01:13]} Bxd6 {[%emt 0:00:05]} 41. Nxd5 {[%emt 0:00:33]} Bf4 {[%emt 0:00:09]} 42. Ne4 {[%emt 0:00:19]} Bc1 {[%emt 0:00:08]} 43. b4 {[%emt 0:00:26]} cxb3 {[%emt 0:00:10]} 44. axb3 {[%emt 0:00:02]} b5 {[%emt 0:00:23]} 45. Nc7 {[%emt 0:00:24]} Nf4+ {[%emt 0:00:17]} 46. Kf3 {[%emt 0:00:53]} b4 {[%emt 0:00:09]} 47. cxb4 {[%emt 0:00:11]} Nd3 {[%emt 0:00:05]} 48. b5 {[%emt 0:00:33]} 1-0

[Event "1000GM Spring Break Schev-F 2024"]
[Site "San Jose"]
[Date "2024.04.07"]
[Round "2.5"]
[White "Jin, Austin"]
[Black "Gongora Montes, Benjamin"]
[Result "0-1"]
[ECO "C02"]
[WhiteElo "1966"]
[BlackElo "2092"]
[Annotator "RC"]
[PlyCount "72"]
[EventDate "2024.03.28"]
[EventType "schev"]
[EventCountry "USA"]
[SourceTitle "playchess.com"]
[Source "ChessBase"]
[SourceQuality "1"]
[TimeControl "5400+30"]

1. e4 {[%emt 0:03:41]} e6 {[%emt 0:00:40]} 2. d4 {[%emt 0:00:11]} d5 {[%emt 0:00:08]} 3. e5 {[%emt 0:00:06]} c5 {[%emt 0:00:08]} 4. c3 {[%emt 0:00:05]} Bd7 {[%emt 0:00:07]} 5. Nf3 {[%emt 0:00:06]} Nc6 {[%emt 0:00:11]} 6. a3 {[%emt 0:00:32]} cxd4 {[%emt 0:03:25]} 7. cxd4 {[%emt 0:00:15]} b5 {[%emt 0:00:07]} 8. Be2 {[%emt 0:01:46]} Qb6 {[%emt 0:01:18]} 9. O-O {[%emt 0:02:14]} Nge7 {[%emt 0:00:09]} 10. Qd3 {[%emt 0:02:50]} Nf5 {[%emt 0:06:45]} 11. Rd1 {[%emt 0:02:06]} Rc8 {[%emt 0:00:52]} 12. Bf4 {[%emt 0:10:26]} b4 {[%emt 0:02:26]} 13. g4 {[%emt 0:05:01]} Nfe7 {[%emt 0:00:49]} 14. Nbd2 {[%emt 0:02:05]} Ng6 {[%emt 0:05:11]} 15. Bg3 {[%emt 0:00:31]} h5 {[%emt 0:00:50]} 16. h3 {[%emt 0:02:02]} Be7 {[%emt 0:06:26]} 17. Kg2 {[%emt 0:03:25]} h4 {[%emt 0:01:53]} 18. Bh2 {[%emt 0:01:01]} Na5 {[%emt 0:01:08]} 19. Rdc1 {[%emt 0:10:15]} O-O {[%emt 0:00:37]} 20. Qe3 {[%emt 0:06:14]} Bb5 {[%emt 0:01:18]} 21. Bxb5 {[%emt 0:00:37]} Qxb5 {[%emt 0:00:52]} 22. a4 {[%emt 0:01:44]} Qa6 {[%emt 0:02:12]} 23. Bf4 {[%emt 0:04:36]} Rxc1 {[%emt 0:02:30]} 24. Rxc1 {[%emt 0:00:07]} Rc8 {[%emt 0:00:11]} 25. Rxc8+ {[%emt 0:00:22]} Qxc8 {[%emt 0:00:11]} 26. Bg5 {[%emt 0:01:35]} Bxg5 {[%emt 0:02:51]} 27. Qxg5 {[%emt 0:00:36]} Nc4 {[%emt 0:00:18]} 28. Nxc4 {[%emt 0:01:09]} dxc4 {[%emt 0:00:09]} 29. Qc1 {[%emt 0:07:17]} Qc6 {[%emt 0:01:22]} 30. Qe3 {[%emt 0:05:55]} c3 {[%emt 0:00:23]} 31. bxc3 {[%emt 0:00:29]} bxc3 {[%emt 0:02:36]} 32. d5 {[%emt 0:00:11]} exd5 {[%emt 0:01:49]} 33. Nd4 {[%emt 0:01:40]} Qc4 {[%emt 0:00:27]} 34. e6 {[%emt 0:04:07]} fxe6 {[%emt 0:00:10]} 35. Qxe6+ {[%emt 0:00:20]} Kh7 {[%emt 0:00:09]} 36. Nf3 {[%emt 0:01:15]} Nf4+ {[%emt 0:00:09]} 0-1

[Event "1000GM Spring Break Schev-F 2024"]
[Site "San Jose"]
[Date "2024.04.07"]
[Round "3.1"]
[White "Sethuraman, Anand"]
[Black "Varela Velazquez, Carlos Francisco"]
[Result "0-1"]
[ECO "D04"]
[WhiteElo "1749"]
[BlackElo "2084"]
[Annotator "RC"]
[PlyCount "120"]
[EventDate "2024.03.28"]
[EventType "schev"]
[EventCountry "USA"]
[SourceTitle "playchess.com"]
[Source "ChessBase"]
[SourceQuality "1"]
[TimeControl "5400+30"]

1. Nf3 {[%emt 0:00:04]} Nf6 {[%emt 0:02:49]} 2. b3 {[%emt 0:00:07]} g6 {[%emt 0:01:35]} 3. Bb2 {[%emt 0:00:10]} Bg7 {[%emt 0:00:03]} 4. c4 {[%emt 0:00:12]} O-O {[%emt 0:00:44]} 5. e3 {[%emt 0:00:16]} c5 {[%emt 0:01:07]} 6. Be2 {[%emt 0:00:43]} Nc6 {[%emt 0:00:24]} 7. O-O {[%emt 0:01:10]} d5 {[%emt 0:00:50]} 8. cxd5 {[%emt 0:01:27]} Qxd5 {[%emt 0:00:01]} 9. d4 {[%emt 0:03:42]} Ne4 {[%emt 0:08:09]} 10. Bc4 {[%emt 0:25:24]} Qf5 {[%emt 0:11:20]} 11. Qe2 {[%emt 0:19:37]} Rd8 {[%emt 0:29:43]} 12. dxc5 {[%emt 0:04:57]} Bxb2 {[%emt 0:01:25]} 13. Qxb2 {[%emt 0:00:08]} Nxc5 {[%emt 0:00:42]} 14. Nc3 {[%emt 0:03:12]} b6 {[%emt 0:07:37]} 15. Rad1 {[%emt 0:03:09]} Bb7 {[%emt 0:01:09]} 16. Qe2 {[%emt 0:05:48]} Ne5 {[%emt 0:01:07]} 17. Nxe5 {[%emt 0:05:00]} Qxe5 {[%emt 0:00:09]} 18. Nb5 {[%emt 0:04:45]} a6 {[%emt 0:01:42]} 19. Nd4 {[%emt 0:03:01]} b5 {[%emt 0:00:36]} 20. Bd3 {[%emt 0:01:03]} Qd5 {[%emt 0:02:23]} 21. f4 {[%emt 0:03:41]} e5 {[%emt 0:01:37]} 22. fxe5 {[%emt 0:00:37]} Qxe5 {[%emt 0:00:08]} 23. Qf2 {[%emt 0:00:51]} f5 {[%emt 0:04:22]} 24. Bb1 {[%emt 0:02:07]} Re8 {[%emt 0:04:07]} 25. Rde1 {[%emt 0:01:16]} Be4 {[%emt 0:00:03]} 26. Bxe4 {[%emt 0:01:01]} Nxe4 {[%emt 0:00:02]} 27. Qf4 {[%emt 0:01:22]} Nf6 {[%emt 0:01:17]} 28. Qg5 {[%emt 0:01:21]} Ne4 {[%emt 0:01:45]} 29. Qh6 {[%emt 0:01:40]} Rac8 {[%emt 0:01:53]} 30. Qf4 {[%emt 0:01:17]} b4 {[%emt 0:03:21]} 31. Qxe5 {[%emt 0:01:38]} Rxe5 {[%emt 0:00:58]} 32. Rc1 {[%emt 0:00:29]} Nc3 {[%emt 0:01:41]} 33. Rfe1 {[%emt 0:00:38]} Ra5 {[%emt 0:01:11]} 34. Rc2 {[%emt 0:01:01]} Rxa2 {[%emt 0:00:24]} 35. Rxa2 {[%emt 0:00:08]} Nxa2 {[%emt 0:00:01]} 36. Ra1 {[%emt 0:00:12]} Rc1+ {[%emt 0:00:19]} 37. Rxc1 {[%emt 0:00:07]} Nxc1 {[%emt 0:00:02]} 38. Nc6 {[%emt 0:01:19]} Nxb3 {[%emt 0:00:06]} 39. Nxb4 {[%emt 0:00:05]} a5 {[%emt 0:00:53]} 40. Nd5 a4 {[%emt 0:12:45]} 41. Nc3 {[%emt 0:06:15]} Nc5 {[%emt 0:00:00]} 42. Kf1 {[%emt 0:00:00]} a3 {[%emt 0:00:00]} 43. Ke2 {[%emt 0:00:00]} Kf7 {[%emt 0:00:00]} 44. Kd1 {[%emt 0:00:00]} Ne4 {[%emt 0:00:00]} 45. Na2 {[%emt 0:00:00]} Ke6 {[%emt 0:00:00]} 46. Kc2 {[%emt 0:00:00]} Ke5 {[%emt 0:00:00]} 47. Kd3 {[%emt 0:00:00]} Kd5 {[%emt 0:00:00]} 48. Nb4+ {[%emt 0:00:49]} Kc5 {[%emt 0:00:00]} 49. Na2 {[%emt 0:00:07]} Nf2+ {[%emt 0:00:00]} 50. Ke2 {[%emt 0:01:28]} Ng4 {[%emt 0:00:00]} 51. h3 {[%emt 0:00:12]} Ne5 {[%emt 0:00:00]} 52. Kd2 {[%emt 0:00:15]} Kc4 {[%emt 0:00:00]} 53. Nc1 {[%emt 0:00:58]} Nd3 {[%emt 0:00:00]} 54. Na2 {[%emt 0:00:33]} Nb4 {[%emt 0:00:00]} 55. Nc1 {[%emt 0:00:29]} a2 {[%emt 0:00:00]} 56. Nxa2 {[%emt 0:00:11]} Nxa2 {[%emt 0:00:00]} 57. g4 {[%emt 0:00:08]} fxg4 {[%emt 0:00:00]} 58. hxg4 {[%emt 0:00:07]} Kd5 {[%emt 0:00:00]} 59. Kd3 {[%emt 0:00:27]} Nb4+ {[%emt 0:00:00]} 60. Kc3 {[%emt 0:01:23]} Nc6 {[%emt 0:00:00]} 0-1